[Event "2026 Biel Blitz Open"]
[Site "Biel, CH"]
[Date "2026.07.19"]
[Round "8"]
[White "Stefan, Iulia-Cristiana"]
[Black "Coban, Ege"]
[Result "0-1"]
[Board "30"]
[TimeControl "180+2"]
[WhiteFideId "1273876"]
[BlackFideId "26320304"]
[WhiteElo "2050"]
[BlackElo "1936"]
[WhiteTitle "WFM"]
[WhiteClock "0:00:04"]
[BlackClock "0:00:41"]
[Variant "Standard"]
[EndDate "2026.07.19"]
[EndTime "14:26:44"]

1. d4 {[%clk 0:03:04]}  Nf6 {[%clk 0:03:02]} 2. Nf3 {[%clk 0:03:05]}  c5 {[%clk 0:03:03]} 3. c4 {[%clk 0:02:57]}  g6 {[%clk 0:03:02]}
4. g3 {[%clk 0:02:58]}  cxd4 {[%clk 0:03:00]} 5. Nxd4 {[%clk 0:02:59]}  Bg7 {[%clk 0:03:01]} 6. Bg2 {[%clk 0:03:00]}  O-O {[%clk 0:03:01]}
7. Nc3 {[%clk 0:02:54]}  Nc6 {[%clk 0:02:59]} 8. O-O {[%clk 0:02:50]}  Nxd4 {[%clk 0:02:55]} 9. Qxd4 {[%clk 0:02:50]}  d6 {[%clk 0:02:57]}
10. Qd3 {[%clk 0:02:49]}  Bf5 {[%clk 0:02:57]} 11. e4 {[%clk 0:02:47]}  Bg4 {[%clk 0:02:56]} 12. h3 {[%clk 0:02:43]}  Be6 {[%clk 0:02:58]}
13. b3 {[%clk 0:02:44]}  Qa5 {[%clk 0:02:55]} 14. Bd2 {[%clk 0:02:42]}  Rfc8 {[%clk 0:02:54]} 15. Nd5 {[%clk 0:02:25]}  Qd8 {[%clk 0:02:55]}
16. Rac1 {[%clk 0:02:25]}  Qd7 {[%clk 0:02:52]} 17. Kh2 {[%clk 0:02:24]}  Rab8 {[%clk 0:02:32]} 18. f4 {[%clk 0:02:21]}  b5 {[%clk 0:02:21]}
19. Nxf6+ {[%clk 0:01:54]}  Bxf6 {[%clk 0:02:22]} 20. f5 {[%clk 0:01:55]}  bxc4 {[%clk 0:02:00]} 21. bxc4 {[%clk 0:01:35]}  Rb2 {[%clk 0:01:33]}
22. fxe6 {[%clk 0:01:34]}  Qxe6 {[%clk 0:01:34]} 23. a3 {[%clk 0:01:21]}  Rcb8 {[%clk 0:01:34]} 24. Bb4 {[%clk 0:01:05]}  Be5 {[%clk 0:01:29]}
25. Rc2 {[%clk 0:00:36]}  Rxc2 {[%clk 0:01:20]} 26. Qxc2 {[%clk 0:00:37]}  a5 {[%clk 0:01:21]} 27. Bxa5 {[%clk 0:00:33]}  Rb2 {[%clk 0:01:22]}
28. Qd3 {[%clk 0:00:29]}  h5 {[%clk 0:01:18]} 29. Bc3 {[%clk 0:00:26]}  Rb3 {[%clk 0:01:19]} 30. Rc1 {[%clk 0:00:22]}  h4 {[%clk 0:01:18]}
31. Qd2 {[%clk 0:00:14]}  Bxg3+ {[%clk 0:01:09]} 32. Kh1 {[%clk 0:00:16]}  Qxc4 {[%clk 0:01:03]} 33. Be5 {[%clk 0:00:07]}  Qe6 {[%clk 0:00:48]}
34. Bxg3 {[%clk 0:00:08]}  hxg3 {[%clk 0:00:49]} 35. Qh6 {[%clk 0:00:06]}  Rxa3 {[%clk 0:00:44]} 36. Rb1 {[%clk 0:00:05]}  Ra8 {[%clk 0:00:42]}
37. Qf4 {[%clk 0:00:05]}  Qe5 {[%clk 0:00:42]} 38. Qxe5 {[%clk 0:00:04]}  dxe5 {[%clk 0:00:43]} 39. Rb5 {[%clk 0:00:05]}  f6 {[%clk 0:00:44]}
40. Rb7 {[%clk 0:00:07]}  Kf7 {[%clk 0:00:46]} 41. Rb1 {[%clk 0:00:07]}  Ra2 {[%clk 0:00:47]} 42. Kg1 {[%clk 0:00:07]}  Kg7 {[%clk 0:00:45]}
43. Kf1 {[%clk 0:00:05]}  Rf2+ {[%clk 0:00:46]} 44. Kg1 {[%clk 0:00:07]}  f5 {[%clk 0:00:47]} 45. Rb5 {[%clk 0:00:05]}  Kf6 {[%clk 0:00:48]}
46. Rb6+ {[%clk 0:00:06]}  e6 {[%clk 0:00:50]} 47. Rb3 {[%clk 0:00:06]}  f4 {[%clk 0:00:51]} 48. h4 {[%clk 0:00:05]}  Ra2 {[%clk 0:00:51]}
49. Rb1 {[%clk 0:00:04]}  Ra7 {[%clk 0:00:51]} 50. Bf3 {[%clk 0:00:01]}  Rh7 {[%clk 0:00:50]} 51. Kg2 {[%clk 0:00:04]}  Rxh4 {[%clk 0:00:51]}
52. Rh1 {[%clk 0:00:05]}  Kg5 {[%clk 0:00:43]} 53. Rh3 {[%clk 0:00:03]}  Rh6 {[%clk 0:00:42]} 54. Rxh6 {[%clk 0:00:04]}  Kxh6 {[%clk 0:00:43]}
55. Kh3 {[%clk 0:00:06]}  Kg5 {[%clk 0:00:44]} 56. Bg2 {[%clk 0:00:03]}  Kh6 {[%clk 0:00:42]} 57. Kg4 {[%clk 0:00:07]}  g5 {[%clk 0:00:44]}
58. Bf3 {[%clk 0:00:08]}  Kg6 {[%clk 0:00:45]} 59. Bg2 {[%clk 0:00:07]}  Kh6 {[%clk 0:00:44]} 60. Bf1 {[%clk 0:00:07]}  Kg6 {[%clk 0:00:44]}
61. Bh3 {[%clk 0:00:06]}  Kf6 {[%clk 0:00:43]} 62. Kf3 {[%clk 0:00:06]}  Ke7 {[%clk 0:00:42]} 63. Kg4 {[%clk 0:00:07]}  Kf6 {[%clk 0:00:44]}
64. Bg2 {[%clk 0:00:05]}  Kg6 {[%clk 0:00:44]} 65. Bh3 {[%clk 0:00:05]}  Kf7 {[%clk 0:00:42]} 66. Kf3 {[%clk 0:00:07]}  Ke7 {[%clk 0:00:44]}
67. Bg4 {[%clk 0:00:05]}  Kd6 {[%clk 0:00:44]} 68. Bh3 {[%clk 0:00:05]}  Kc5 {[%clk 0:00:45]} 69. Bxe6 {[%clk 0:00:05]}  Kd4 {[%clk 0:00:46]}
70. Bh3 {[%clk 0:00:05]}  Kd3 {[%clk 0:00:48]} 71. Bf1+ {[%clk 0:00:05]}  Kd2 {[%clk 0:00:49]} 72. Bh3 {[%clk 0:00:04]}  Kd3 {[%clk 0:00:48]}
73. Bg2 {[%clk 0:00:05]}  Kd4 {[%clk 0:00:47]} 74. Bh3 {[%clk 0:00:05]}  Kd3 {[%clk 0:00:44]} 75. Bf1+ {[%clk 0:00:06]}  Kd2 {[%clk 0:00:44]}
76. Bh3 {[%clk 0:00:07]}  Ke1 {[%clk 0:00:44]} 77. Bg2 {[%clk 0:00:07]}  g4+ {[%clk 0:00:44]} 78. Kxg4 {[%clk 0:00:07]}  Kf2 {[%clk 0:00:45]}
79. Bh3 {[%clk 0:00:03]}  g2 {[%clk 0:00:45]} 80. Kf5 {[%clk 0:00:04]}  g1=Q {[%clk 0:00:41]} 0-1

[Event "2026 Biel Blitz Open"]
[Site "Biel, CH"]
[Date "2026.07.19"]
[Round "8"]
[White "Hajduk, Tomasz"]
[Black "Xu, Chang(CQ)"]
[Result "0-1"]
[Board "31"]
[TimeControl "180+2"]
[WhiteFideId "21811415"]
[BlackFideId "8641757"]
[WhiteElo "1791"]
[BlackElo "2049"]
[WhiteClock "0:00:15"]
[BlackClock "0:00:12"]
[Variant "Standard"]
[EndDate "2026.07.19"]
[EndTime "14:26:20"]

1. e4 {[%clk 0:03:02]}  c5 {[%clk 0:03:03]} 2. Nf3 {[%clk 0:03:03]}  d6 {[%clk 0:03:04]} 3. d4 {[%clk 0:03:04]}  cxd4 {[%clk 0:03:05]}
4. Nxd4 {[%clk 0:03:06]}  Nf6 {[%clk 0:03:06]} 5. Nc3 {[%clk 0:03:07]}  a6 {[%clk 0:03:07]} 6. Bg5 {[%clk 0:03:06]}  e6 {[%clk 0:03:09]}
7. f4 {[%clk 0:03:06]}  Qb6 {[%clk 0:03:10]} 8. Bxf6 {[%clk 0:02:59]}  gxf6 {[%clk 0:03:07]} 9. Qd2 {[%clk 0:02:59]}  Qxb2 {[%clk 0:03:06]}
10. Rb1 {[%clk 0:02:55]}  Qa3 {[%clk 0:03:06]} 11. f5 {[%clk 0:02:38]}  e5 {[%clk 0:02:14]} 12. Nf3 {[%clk 0:02:37]}  Nd7 {[%clk 0:02:05]}
13. Nd5 {[%clk 0:02:36]}  Qc5 {[%clk 0:02:03]} 14. Rb3 {[%clk 0:02:26]}  b5 {[%clk 0:01:28]} 15. Rc3 {[%clk 0:02:27]}  Qa7 {[%clk 0:01:29]}
16. Nc7+ {[%clk 0:02:27]}  Kd8 {[%clk 0:01:31]} 17. Nxa8 {[%clk 0:02:28]}  Qxa8 {[%clk 0:01:31]} 18. a4 {[%clk 0:02:11]}  Qxe4+ {[%clk 0:01:30]}
19. Be2 {[%clk 0:02:10]}  b4 {[%clk 0:01:15]} 20. Rc4 {[%clk 0:02:01]}  Qa8 {[%clk 0:01:02]} 21. Qxb4 {[%clk 0:01:58]}  d5 {[%clk 0:00:54]}
22. Qa5+ {[%clk 0:01:59]}  Ke8 {[%clk 0:00:56]} 23. Rc3 {[%clk 0:01:30]}  Bd6 {[%clk 0:00:37]} 24. O-O {[%clk 0:01:19]}  Ke7 {[%clk 0:00:37]}
25. Re1 {[%clk 0:01:10]}  Rg8 {[%clk 0:00:35]} 26. Bf1 {[%clk 0:01:08]}  Qa7+ {[%clk 0:00:33]} 27. Kh1 {[%clk 0:01:07]}  Qf2 {[%clk 0:00:32]}
28. Rce3 {[%clk 0:00:58]}  Bc5 {[%clk 0:00:28]} 29. R3e2 {[%clk 0:00:52]}  Bb6 {[%clk 0:00:24]} 30. Qxd5 {[%clk 0:00:44]}  Qc5 {[%clk 0:00:25]}
31. Qxc5+ {[%clk 0:00:39]}  Nxc5 {[%clk 0:00:25]} 32. Rd1 {[%clk 0:00:33]}  Bxf5 {[%clk 0:00:25]} 33. Red2 {[%clk 0:00:27]}  Be6 {[%clk 0:00:26]}
34. Rd6 {[%clk 0:00:26]}  Ba7 {[%clk 0:00:25]} 35. Bxa6 {[%clk 0:00:25]}  Ne4 {[%clk 0:00:26]} 36. R6d2 {[%clk 0:00:17]}  Nxd2 {[%clk 0:00:26]}
37. Rxd2 {[%clk 0:00:18]}  Rb8 {[%clk 0:00:25]} 38. h3 {[%clk 0:00:18]}  Rb1+ {[%clk 0:00:25]} 39. Kh2 {[%clk 0:00:19]}  Be3 {[%clk 0:00:25]}
40. Rd3 {[%clk 0:00:18]}  Ba7 {[%clk 0:00:20]} 41. Rc3 {[%clk 0:00:18]}  Kf8 {[%clk 0:00:18]} 42. Rc7 {[%clk 0:00:18]}  Bf2 {[%clk 0:00:18]}
43. Bb5 {[%clk 0:00:17]}  e4 {[%clk 0:00:18]} 44. Nd2 {[%clk 0:00:15]}  Re1 {[%clk 0:00:13]} 45. a5 {[%clk 0:00:15]}  e3 {[%clk 0:00:13]}
46. Nf3 {[%clk 0:00:16]}  Ra1 {[%clk 0:00:13]} 47. a6 {[%clk 0:00:17]}  Bf5 {[%clk 0:00:11]} 48. c4 {[%clk 0:00:18]}  e2 {[%clk 0:00:11]}
49. c5 {[%clk 0:00:19]}  e1=Q {[%clk 0:00:09]} 50. Nxe1 {[%clk 0:00:19]}  Bxe1 {[%clk 0:00:10]} 51. a7 {[%clk 0:00:19]}  Kg7 {[%clk 0:00:09]}
52. Rb7 {[%clk 0:00:17]}  Bc3 {[%clk 0:00:10]} 53. Bc4 {[%clk 0:00:17]}  Be5+ {[%clk 0:00:11]} 54. g3 {[%clk 0:00:17]}  Be4 {[%clk 0:00:11]}
55. Rxf7+ {[%clk 0:00:15]}  Kg6 {[%clk 0:00:12]} 0-1

[Event "2026 Biel Blitz Open"]
[Site "Biel, CH"]
[Date "2026.07.19"]
[Round "8"]
[White "Baury, Noe"]
[Black "Bajraktari, Perparim"]
[Result "0-1"]
[Board "32"]
[TimeControl "180+2"]
[WhiteFideId "651086867"]
[BlackFideId "1307711"]
[WhiteElo "1886"]
[BlackElo "2045"]
[WhiteClock "0:00:03"]
[BlackClock "0:00:43"]
[Variant "Standard"]
[EndDate "2026.07.19"]
[EndTime "14:26:29"]

1. e4 {[%clk 0:03:03]}  d6 {[%clk 0:02:39]} 2. d4 {[%clk 0:03:03]}  g6 {[%clk 0:02:40]} 3. Nc3 {[%clk 0:03:03]}  Bg7 {[%clk 0:02:41]}
4. Be3 {[%clk 0:03:04]}  Nd7 {[%clk 0:02:42]} 5. Qd2 {[%clk 0:03:04]}  Ngf6 {[%clk 0:02:43]} 6. f3 {[%clk 0:03:06]}  c6 {[%clk 0:02:44]}
7. a4 {[%clk 0:03:05]}  O-O {[%clk 0:02:44]} 8. g4 {[%clk 0:03:05]}  a6 {[%clk 0:02:45]} 9. Bh6 {[%clk 0:02:57]}  e5 {[%clk 0:02:46]}
10. Nge2 {[%clk 0:02:58]}  Rb8 {[%clk 0:02:45]} 11. h4 {[%clk 0:02:56]}  exd4 {[%clk 0:02:42]} 12. Nxd4 {[%clk 0:02:55]}  Ne5 {[%clk 0:02:43]}
13. Bg2 {[%clk 0:02:38]}  c5 {[%clk 0:02:38]} 14. Nde2 {[%clk 0:02:36]}  b5 {[%clk 0:02:40]} 15. h5 {[%clk 0:02:26]}  Nc4 {[%clk 0:02:34]}
16. Qc1 {[%clk 0:02:19]}  b4 {[%clk 0:02:33]} 17. Nd1 {[%clk 0:01:54]}  d5 {[%clk 0:02:33]} 18. hxg6 {[%clk 0:01:54]}  fxg6 {[%clk 0:02:16]}
19. Bxg7 {[%clk 0:01:53]}  Kxg7 {[%clk 0:02:17]} 20. Qh6+ {[%clk 0:01:54]}  Kg8 {[%clk 0:02:15]} 21. g5 {[%clk 0:01:30]}  Nh5 {[%clk 0:02:16]}
22. Ng3 {[%clk 0:01:28]}  dxe4 {[%clk 0:01:50]} 23. Nxh5 {[%clk 0:01:29]}  Qd2+ {[%clk 0:01:51]} 24. Kf1 {[%clk 0:01:31]}  gxh5 {[%clk 0:01:48]}
25. Rxh5 {[%clk 0:01:12]}  Bf5 {[%clk 0:01:39]} 26. g6 {[%clk 0:00:25]}  Qxh6 {[%clk 0:01:39]} 27. Rxh6 {[%clk 0:00:26]}  Bxg6 {[%clk 0:01:39]}
28. Rh3 {[%clk 0:00:18]}  exf3 {[%clk 0:01:38]} 29. Bxf3 {[%clk 0:00:17]}  Nd2+ {[%clk 0:01:25]} 30. Kf2 {[%clk 0:00:18]}  Nxf3 {[%clk 0:01:26]}
31. Rxf3 {[%clk 0:00:19]}  Rxf3+ {[%clk 0:01:26]} 32. Kxf3 {[%clk 0:00:21]}  Bxc2 {[%clk 0:01:27]} 33. Ne3 {[%clk 0:00:22]}  Rf8+ {[%clk 0:01:21]}
34. Ke2 {[%clk 0:00:22]}  Be4 {[%clk 0:01:21]} 35. Rc1 {[%clk 0:00:24]}  Rc8 {[%clk 0:01:16]} 36. Nc4 {[%clk 0:00:24]}  Rd8 {[%clk 0:01:08]}
37. Ne3 {[%clk 0:00:20]}  Rc8 {[%clk 0:00:59]} 38. Nc4 {[%clk 0:00:21]}  Rc6 {[%clk 0:00:58]} 39. Ke3 {[%clk 0:00:15]}  Bg6 {[%clk 0:00:55]}
40. Kf4 {[%clk 0:00:12]}  Kg7 {[%clk 0:00:52]} 41. Ke5 {[%clk 0:00:13]}  h5 {[%clk 0:00:47]} 42. Kd5 {[%clk 0:00:09]}  Rc8 {[%clk 0:00:49]}
43. Nd6 {[%clk 0:00:13]}  Rc7 {[%clk 0:00:44]} 44. Rxc5 {[%clk 0:00:07]}  Rxc5+ {[%clk 0:00:42]} 45. Kxc5 {[%clk 0:00:07]}  h4 {[%clk 0:00:47]}
46. Nc4 {[%clk 0:00:03]}  h3 {[%clk 0:00:43]} 0-1

[Event "2026 Biel Blitz Open"]
[Site "Biel, CH"]
[Date "2026.07.19"]
[Round "8"]
[White "Nguyen Thi Mai Hung"]
[Black "Damen, Josephine"]
[Result "1-0"]
[Board "33"]
[TimeControl "180+2"]
[WhiteFideId "12401676"]
[BlackFideId "1074369"]
[WhiteElo "2039"]
[BlackElo "1766"]
[WhiteTitle "WGM"]
[BlackTitle "WCM"]
[WhiteClock "0:01:20"]
[BlackClock "0:00:06"]
[Variant "Standard"]
[EndDate "2026.07.19"]
[EndTime "14:16:25"]

1. d4 {[%clk 0:03:03]}  Nf6 {[%clk 0:03:03]} 2. Nf3 {[%clk 0:03:04]}  g6 {[%clk 0:03:04]} 3. g3 {[%clk 0:03:05]}  Bg7 {[%clk 0:03:06]}
4. Bg2 {[%clk 0:03:06]}  d6 {[%clk 0:03:06]} 5. O-O {[%clk 0:03:06]}  O-O {[%clk 0:03:07]} 6. a4 {[%clk 0:03:07]}  Nbd7 {[%clk 0:02:34]}
7. a5 {[%clk 0:03:08]}  a6 {[%clk 0:02:35]} 8. Nc3 {[%clk 0:03:07]}  e5 {[%clk 0:02:26]} 9. dxe5 {[%clk 0:03:00]}  dxe5 {[%clk 0:02:28]}
10. h3 {[%clk 0:02:48]}  Qe7 {[%clk 0:02:28]} 11. e4 {[%clk 0:02:44]}  Rd8 {[%clk 0:02:23]} 12. Qe2 {[%clk 0:02:45]}  Nc5 {[%clk 0:02:16]}
13. b3 {[%clk 0:02:29]}  Bd7 {[%clk 0:02:02]} 14. Ba3 {[%clk 0:02:26]}  Bf8 {[%clk 0:01:18]} 15. Rfd1 {[%clk 0:02:15]}  Qe8 {[%clk 0:01:15]}
16. Nd5 {[%clk 0:02:02]}  Nxd5 {[%clk 0:00:59]} 17. exd5 {[%clk 0:02:02]}  f6 {[%clk 0:00:28]} 18. Nd2 {[%clk 0:01:46]}  Bf5 {[%clk 0:00:22]}
19. Nc4 {[%clk 0:01:42]}  Qd7 {[%clk 0:00:09]} 20. Kh2 {[%clk 0:01:43]}  Qe8 {[%clk 0:00:04]} 21. Rd2 {[%clk 0:01:37]}  Bd6 {[%clk 0:00:04]}
22. Qe3 {[%clk 0:01:21]}  Bd7 {[%clk 0:00:05]} 23. Bxc5 {[%clk 0:01:20]}  Bxc5 {[%clk 0:00:06]} 24. Qxc5 {[%clk 0:01:20]} 1-0

[Event "2026 Biel Blitz Open"]
[Site "Biel, CH"]
[Date "2026.07.19"]
[Round "8"]
[White "Python, Noe"]
[Black "Bujes, Aurelien"]
[Result "1-0"]
[Board "34"]
[TimeControl "180+2"]
[WhiteFideId "1337637"]
[BlackFideId "1347179"]
[WhiteElo "2010"]
[BlackElo "1741"]
[WhiteClock "0:00:36"]
[BlackClock "0:01:27"]
[Variant "Standard"]
[EndDate "2026.07.19"]
[EndTime "14:25:04"]

1. e4 {[%clk 0:03:04]}  d5 {[%clk 0:03:03]} 2. exd5 {[%clk 0:03:04]}  Qxd5 {[%clk 0:03:04]} 3. Nc3 {[%clk 0:03:06]}  Qa5 {[%clk 0:03:06]}
4. d4 {[%clk 0:03:07]}  c6 {[%clk 0:03:07]} 5. Nf3 {[%clk 0:03:01]}  Bg4 {[%clk 0:03:08]} 6. h3 {[%clk 0:02:56]}  Bh5 {[%clk 0:03:06]}
7. g4 {[%clk 0:02:52]}  Bg6 {[%clk 0:03:07]} 8. Ne5 {[%clk 0:02:53]}  Nf6 {[%clk 0:02:59]} 9. Bd2 {[%clk 0:02:41]}  Qc7 {[%clk 0:02:52]}
10. Bf4 {[%clk 0:02:41]}  Qa5 {[%clk 0:02:45]} 11. Qd2 {[%clk 0:02:27]}  Nbd7 {[%clk 0:02:45]} 12. Nxd7 {[%clk 0:02:12]}  Nxd7 {[%clk 0:02:45]}
13. Bg2 {[%clk 0:02:05]}  e6 {[%clk 0:02:44]} 14. a3 {[%clk 0:01:54]}  Bb4 {[%clk 0:02:24]} 15. O-O {[%clk 0:01:22]}  Bxc3 {[%clk 0:02:21]}
16. Qxc3 {[%clk 0:01:23]}  Qxc3 {[%clk 0:02:20]} 17. bxc3 {[%clk 0:01:24]}  Nb6 {[%clk 0:02:20]} 18. Ra2 {[%clk 0:01:17]}  h6 {[%clk 0:02:20]}
19. Rb1 {[%clk 0:01:11]}  O-O {[%clk 0:02:18]} 20. a4 {[%clk 0:01:11]}  Rfe8 {[%clk 0:02:11]} 21. a5 {[%clk 0:01:11]}  Nd5 {[%clk 0:02:11]}
22. Bxd5 {[%clk 0:01:01]}  exd5 {[%clk 0:02:12]} 23. Be3 {[%clk 0:00:53]}  Re7 {[%clk 0:02:11]} 24. Kf1 {[%clk 0:00:52]}  a6 {[%clk 0:02:06]}
25. Ke2 {[%clk 0:00:52]}  Rb8 {[%clk 0:02:06]} 26. Kd2 {[%clk 0:00:52]}  f5 {[%clk 0:02:05]} 27. g5 {[%clk 0:00:43]}  hxg5 {[%clk 0:01:59]}
28. Bxg5 {[%clk 0:00:44]}  Re4 {[%clk 0:01:56]} 29. f3 {[%clk 0:00:41]}  Re6 {[%clk 0:01:52]} 30. Re1 {[%clk 0:00:38]}  Kf7 {[%clk 0:01:44]}
31. Rxe6 {[%clk 0:00:38]}  Kxe6 {[%clk 0:01:44]} 32. Rb2 {[%clk 0:00:39]}  Bh5 {[%clk 0:01:41]} 33. Ke3 {[%clk 0:00:35]}  Kd6 {[%clk 0:01:27]}
34. Bf4+ {[%clk 0:00:36]} 1-0

[Event "2026 Biel Blitz Open"]
[Site "Biel, CH"]
[Date "2026.07.19"]
[Round "8"]
[White "Dietiker, Manuel"]
[Black "Huang,Hsuan-Chen"]
[Result "1-0"]
[Board "35"]
[TimeControl "180+2"]
[WhiteFideId "1317377"]
[BlackFideId "16303121"]
[WhiteElo "2002"]
[BlackElo "1833"]
[WhiteClock "0:01:46"]
[BlackClock "0:01:31"]
[Variant "Standard"]
[EndDate "2026.07.19"]
[EndTime "14:24:59"]

1. e4 {[%clk 0:03:02]}  c6 {[%clk 0:03:04]} 2. d4 {[%clk 0:03:03]}  d5 {[%clk 0:03:05]} 3. Nd2 {[%clk 0:03:04]}  dxe4 {[%clk 0:03:06]}
4. Nxe4 {[%clk 0:03:05]}  Nf6 {[%clk 0:03:06]} 5. Nxf6+ {[%clk 0:03:06]}  exf6 {[%clk 0:03:07]} 6. Nf3 {[%clk 0:03:05]}  Bd6 {[%clk 0:03:07]}
7. Bd3 {[%clk 0:03:05]}  Nd7 {[%clk 0:03:06]} 8. O-O {[%clk 0:03:04]}  O-O {[%clk 0:03:07]} 9. Re1 {[%clk 0:03:01]}  Re8 {[%clk 0:03:07]}
10. Rxe8+ {[%clk 0:03:02]}  Qxe8 {[%clk 0:03:08]} 11. c3 {[%clk 0:03:03]}  Nf8 {[%clk 0:03:09]} 12. Qc2 {[%clk 0:03:01]}  Be6 {[%clk 0:03:01]}
13. Bd2 {[%clk 0:03:01]}  Qd7 {[%clk 0:02:59]} 14. Re1 {[%clk 0:03:01]}  Ng6 {[%clk 0:03:00]} 15. c4 {[%clk 0:02:47]}  Rd8 {[%clk 0:02:57]}
16. b3 {[%clk 0:02:31]}  Bb8 {[%clk 0:02:57]} 17. Bxg6 {[%clk 0:02:14]}  hxg6 {[%clk 0:02:57]} 18. Bc3 {[%clk 0:02:11]}  Bg4 {[%clk 0:02:46]}
19. Qe4 {[%clk 0:02:06]}  Bf5 {[%clk 0:02:32]} 20. Qe7 {[%clk 0:02:01]}  Qc8 {[%clk 0:02:01]} 21. Nh4 {[%clk 0:01:50]}  Be6 {[%clk 0:01:48]}
22. Nxg6 {[%clk 0:01:46]}  Bd6 {[%clk 0:01:49]} 23. Qxd6 {[%clk 0:01:44]}  Rxd6 {[%clk 0:01:40]} 24. Ne7+ {[%clk 0:01:46]}  Kf8 {[%clk 0:01:40]}
25. Nxc8 {[%clk 0:01:46]}  c5 {[%clk 0:01:31]} 26. Nxd6 {[%clk 0:01:46]} 1-0

[Event "2026 Biel Blitz Open"]
[Site "Biel, CH"]
[Date "2026.07.19"]
[Round "8"]
[White "Chu, Wa Ching David"]
[Black "Kwiatkowski, Maciej"]
[Result "0-1"]
[Board "36"]
[TimeControl "180+2"]
[WhiteFideId "6013180"]
[BlackFideId "1360175"]
[WhiteElo "1673"]
[BlackElo "1967"]
[WhiteClock "0:00:01"]
[BlackClock "0:00:23"]
[Variant "Standard"]
[EndDate "2026.07.19"]
[EndTime "14:25:38"]

1. d4 {[%clk 0:03:02]}  Nf6 {[%clk 0:03:03]} 2. Bg5 {[%clk 0:03:03]}  e6 {[%clk 0:03:02]} 3. Nd2 {[%clk 0:03:05]}  Be7 {[%clk 0:03:02]}
4. e4 {[%clk 0:03:06]}  d6 {[%clk 0:03:02]} 5. h4 {[%clk 0:03:02]}  c5 {[%clk 0:02:56]} 6. c3 {[%clk 0:03:01]}  Nc6 {[%clk 0:02:54]}
7. Ngf3 {[%clk 0:03:02]}  a6 {[%clk 0:02:42]} 8. a3 {[%clk 0:02:51]}  b5 {[%clk 0:02:41]} 9. Bd3 {[%clk 0:02:50]}  cxd4 {[%clk 0:02:26]}
10. cxd4 {[%clk 0:02:49]}  h6 {[%clk 0:02:27]} 11. Bf4 {[%clk 0:02:47]}  Qb6 {[%clk 0:02:26]} 12. Nb3 {[%clk 0:02:22]}  Bb7 {[%clk 0:02:06]}
13. O-O {[%clk 0:02:18]}  O-O {[%clk 0:02:06]} 14. Rc1 {[%clk 0:02:00]}  Rac8 {[%clk 0:02:05]} 15. Qe2 {[%clk 0:02:01]}  Na5 {[%clk 0:01:55]}
16. Nxa5 {[%clk 0:02:00]}  Qxa5 {[%clk 0:01:56]} 17. Bd2 {[%clk 0:01:40]}  Qd8 {[%clk 0:01:47]} 18. Rxc8 {[%clk 0:01:37]}  Bxc8 {[%clk 0:01:47]}
19. Rc1 {[%clk 0:01:31]}  Bb7 {[%clk 0:01:35]} 20. e5 {[%clk 0:01:17]}  dxe5 {[%clk 0:01:21]} 21. dxe5 {[%clk 0:01:18]}  Ng4 {[%clk 0:00:54]}
22. Be4 {[%clk 0:01:00]}  Bd5 {[%clk 0:00:51]} 23. Bxd5 {[%clk 0:00:48]}  Qxd5 {[%clk 0:00:51]} 24. Bf4 {[%clk 0:00:32]}  Rd8 {[%clk 0:00:50]}
25. g3 {[%clk 0:00:26]}  Bc5 {[%clk 0:00:42]} 26. Be3 {[%clk 0:00:14]}  Bxe3 {[%clk 0:00:37]} 27. fxe3 {[%clk 0:00:15]}  Nxe5 {[%clk 0:00:37]}
28. Nxe5 {[%clk 0:00:15]}  Qxe5 {[%clk 0:00:38]} 29. Kg2 {[%clk 0:00:10]}  Qe4+ {[%clk 0:00:30]} 30. Kf2 {[%clk 0:00:06]}  Rd5 {[%clk 0:00:24]}
31. Rd1 {[%clk 0:00:04]}  Rf5+ {[%clk 0:00:25]} 32. Kg1 {[%clk 0:00:05]}  Rf3 {[%clk 0:00:25]} 33. Rd8+ {[%clk 0:00:05]}  Kh7 {[%clk 0:00:26]}
34. Kh2 {[%clk 0:00:05]}  Rxe3 {[%clk 0:00:26]} 35. Qd1 {[%clk 0:00:03]}  Re2+ {[%clk 0:00:26]} 36. Kg1 {[%clk 0:00:00]}  Qg2# {[%clk 0:00:00]} 0-1

[Event "2026 Biel Blitz Open"]
[Site "Biel, CH"]
[Date "2026.07.19"]
[Round "8"]
[White "Floure, Alexan"]
[Black "Gireada, Lucas"]
[Result "1-0"]
[Board "37"]
[TimeControl "180+2"]
[WhiteFideId "1346610"]
[BlackFideId "1373544"]
[WhiteElo "1960"]
[BlackElo "1651"]
[WhiteClock "0:02:32"]
[BlackClock "0:02:38"]
[Variant "Standard"]
[EndDate "2026.07.19"]
[EndTime "14:24:34"]

1. d4 {[%clk 0:03:02]}  Nf6 {[%clk 0:03:02]} 2. c4 {[%clk 0:03:02]}  e6 {[%clk 0:03:02]} 3. Nc3 {[%clk 0:03:05]}  d5 {[%clk 0:03:04]}
4. Nf3 {[%clk 0:03:04]}  c5 {[%clk 0:03:03]} 5. e3 {[%clk 0:02:56]}  Nc6 {[%clk 0:03:02]} 6. cxd5 {[%clk 0:02:53]}  Nxd5 {[%clk 0:03:01]}
7. Bb5 {[%clk 0:02:49]}  Be7 {[%clk 0:02:57]} 8. dxc5 {[%clk 0:02:45]}  Bxc5 {[%clk 0:02:37]} 9. Nxd5 {[%clk 0:02:40]}  exd5 {[%clk 0:02:37]}
10. O-O {[%clk 0:02:34]}  O-O {[%clk 0:02:38]} 11. Bd2 {[%clk 0:02:32]} 1-0

[Event "2026 Biel Blitz Open"]
[Site "Biel, CH"]
[Date "2026.07.19"]
[Round "8"]
[White "Kutonov, Yehor"]
[Black "Tkhoruk, Roman"]
[Result "0-1"]
[Board "38"]
[TimeControl "180+2"]
[WhiteFideId "1364804"]
[BlackFideId "34161589"]
[WhiteElo "1805"]
[BlackElo "2055"]
[WhiteClock "0:01:46"]
[BlackClock "0:01:45"]
[Variant "Standard"]
[EndDate "2026.07.19"]
[EndTime "14:24:15"]

1. d4 {[%clk 0:03:02]}  Nf6 {[%clk 0:02:06]} 2. c4 {[%clk 0:03:03]}  e6 {[%clk 0:02:08]} 3. Nf3 {[%clk 0:03:04]}  Bb4+ {[%clk 0:02:09]}
4. Nc3 {[%clk 0:03:01]}  O-O {[%clk 0:02:09]} 5. e3 {[%clk 0:03:02]}  Bxc3+ {[%clk 0:02:09]} 6. bxc3 {[%clk 0:03:03]}  d5 {[%clk 0:02:11]}
7. Bd3 {[%clk 0:03:00]}  c6 {[%clk 0:02:11]} 8. O-O {[%clk 0:02:59]}  Nbd7 {[%clk 0:02:11]} 9. Re1 {[%clk 0:02:55]}  Ne4 {[%clk 0:02:13]}
10. Qc2 {[%clk 0:02:54]}  f5 {[%clk 0:02:14]} 11. Nd2 {[%clk 0:02:54]}  Ndf6 {[%clk 0:02:11]} 12. f3 {[%clk 0:02:53]}  Nxd2 {[%clk 0:02:11]}
13. Bxd2 {[%clk 0:02:43]}  b6 {[%clk 0:02:09]} 14. cxd5 {[%clk 0:02:39]}  cxd5 {[%clk 0:01:59]} 15. c4 {[%clk 0:02:27]}  g6 {[%clk 0:01:54]}
16. e4 {[%clk 0:02:10]}  dxe4 {[%clk 0:01:52]} 17. fxe4 {[%clk 0:02:07]}  fxe4 {[%clk 0:01:46]} 18. Bxe4 {[%clk 0:01:55]}  Qxd4+ {[%clk 0:01:45]}
19. Kh1 {[%clk 0:01:55]}  Nxe4 {[%clk 0:01:45]} 20. Rxe4 {[%clk 0:01:46]}  Qxa1+ {[%clk 0:01:45]} 0-1